[Event "Titled Tuesday Blitz April 25 Early 2023"]
[White "Fierz, Martin"]
[Black "tufferguy"]
[WhiteFideId "1302132"]
[WhiteElo "2302"]
[BlackElo "2610"]
[Result "0-1"]
[Round "01"]
[TimeControl "180+2"]
[Date "2023.04.25"]
[WhiteClock "0:00:13"]
[BlackClock "0:00:54"]

1. e4 {[%clk 0:02:59]}  e6 {[%clk 0:02:59]} 2. d4 {[%clk 0:02:58]}  d5 {[%clk 0:03:00]} 3. Nc3 {[%clk 0:02:58]}  Nf6 {[%clk 0:03:00]} 4. e5 {[%clk 0:02:59]}  Ng8 {[%clk 0:03:00]} 5. f4 {[%clk 0:02:59]}  c5 {[%clk 0:03:00]} 6. Nf3 {[%clk 0:03:00]}  Nc6 {[%clk 0:03:00]} 7. Be3 {[%clk 0:03:00]}  c4 {[%clk 0:02:59]} 8. h4 {[%clk 0:02:43]}  b5 {[%clk 0:02:57]} 9. h5 {[%clk 0:02:42]}  b4 {[%clk 0:02:57]} 10. Ne2 {[%clk 0:02:42]}  h6 {[%clk 0:02:57]} 11. g4 {[%clk 0:02:40]}  a5 {[%clk 0:02:54]} 12. c3 {[%clk 0:02:38]}  Bd7 {[%clk 0:02:51]} 13. Kf2 {[%clk 0:02:37]}  Nge7 {[%clk 0:02:46]} 14. Bh3 {[%clk 0:02:37]}  Nc8 {[%clk 0:02:45]} 15. Kg3 {[%clk 0:02:31]}  Nb6 {[%clk 0:02:45]} 16. Rf1 {[%clk 0:02:19]}  Qc7 {[%clk 0:02:42]} 17. f5 {[%clk 0:02:18]}  O-O-O {[%clk 0:02:36]} 18. Nf4 {[%clk 0:02:16]}  Be7 {[%clk 0:02:32]} 19. Qd2 {[%clk 0:01:49]}  Kb8 {[%clk 0:02:19]} 20. fxe6 {[%clk 0:01:46]}  Bxe6 {[%clk 0:02:18]} 21. Nxe6 {[%clk 0:01:46]}  fxe6 {[%clk 0:02:19]} 22. Nh2 {[%clk 0:01:24]}  Rhf8 {[%clk 0:02:18]} 23. Rxf8 {[%clk 0:01:24]}  Rxf8 {[%clk 0:02:17]} 24. Rf1 {[%clk 0:01:24]}  Qd8 {[%clk 0:02:17]} 25. Rxf8 {[%clk 0:01:14]}  Qxf8 {[%clk 0:02:18]} 26. g5 {[%clk 0:01:14]}  hxg5 {[%clk 0:01:55]} 27. Bxg5 {[%clk 0:01:13]}  Qf7 {[%clk 0:01:45]} 28. Bg4 {[%clk 0:01:00]}  b3 {[%clk 0:01:41]} 29. a3 {[%clk 0:00:58]}  Na4 {[%clk 0:01:35]} 30. Nf3 {[%clk 0:00:45]}  Nd8 {[%clk 0:01:17]} 31. Qg2 {[%clk 0:00:26]}  Bxg5 {[%clk 0:01:10]} 32. Nxg5 {[%clk 0:00:26]}  Qe7 {[%clk 0:01:11]} 33. Kf4 {[%clk 0:00:18]}  Kc7 {[%clk 0:01:09]} 34. Qe2 {[%clk 0:00:16]}  Kb6 {[%clk 0:01:05]} 35. Nh3 {[%clk 0:00:13]}  Nf7 {[%clk 0:01:05]} 36. Kg3 {[%clk 0:00:13]}  Ng5 {[%clk 0:01:04]} 37. Nf4 {[%clk 0:00:13]}  Ne4+ {[%clk 0:01:04]} 38. Kh3 {[%clk 0:00:13]}  Nexc3 {[%clk 0:00:54]} 39. Kg3 {[%clk 0:00:13]}  Nxe2+ {[%clk 0:00:54]} 0-1


[Site "https://www.chess.com"]

[Event "Titled Tuesday Blitz April 25 Early 2023"]
[White "Kokoszczynski, Jan"]
[Black "Ardila, Oscar Humberto"]
[WhiteFideId "1174460"]
[BlackFideId "4404742"]
[WhiteElo "2139"]
[BlackElo "1918"]
[Result "1-0"]
[Round "01"]
[TimeControl "180+2"]
[Date "2023.04.25"]
[WhiteClock "0:00:14"]
[BlackClock "0:00:14"]

1. e4 {[%clk 0:02:51]}  e5 {[%clk 0:02:59]} 2. Nf3 {[%clk 0:02:51]}  Nf6 {[%clk 0:02:59]} 3. Nxe5 {[%clk 0:02:49]}  d6 {[%clk 0:02:58]} 4. Nf3 {[%clk 0:02:48]}  Nxe4 {[%clk 0:02:58]} 5. d3 {[%clk 0:02:42]}  Nf6 {[%clk 0:02:57]} 6. d4 {[%clk 0:02:43]}  Be7 {[%clk 0:02:58]} 7. Bd3 {[%clk 0:02:42]}  O-O {[%clk 0:02:59]} 8. O-O {[%clk 0:02:43]}  Bg4 {[%clk 0:02:56]} 9. h3 {[%clk 0:02:42]}  Bh5 {[%clk 0:02:55]} 10. Re1 {[%clk 0:02:43]}  Nbd7 {[%clk 0:02:55]} 11. Nbd2 {[%clk 0:02:43]}  Re8 {[%clk 0:02:54]} 12. Nf1 {[%clk 0:02:43]}  Nf8 {[%clk 0:02:53]} 13. Ng3 {[%clk 0:02:44]}  Bg6 {[%clk 0:02:53]} 14. Nf5 {[%clk 0:02:44]}  Qd7 {[%clk 0:02:39]} 15. Nxe7+ {[%clk 0:02:32]}  Rxe7 {[%clk 0:02:39]} 16. Rxe7 {[%clk 0:02:33]}  Qxe7 {[%clk 0:02:38]} 17. Bf1 {[%clk 0:02:28]}  Ne4 {[%clk 0:02:34]} 18. c3 {[%clk 0:02:27]}  Re8 {[%clk 0:02:31]} 19. Be3 {[%clk 0:02:05]}  Qf6 {[%clk 0:02:28]} 20. Nd2 {[%clk 0:01:52]}  Ne6 {[%clk 0:02:15]} 21. Nxe4 {[%clk 0:01:45]}  Bxe4 {[%clk 0:02:15]} 22. Qd2 {[%clk 0:01:45]}  Qg6 {[%clk 0:02:14]} 23. Re1 {[%clk 0:01:44]}  f5 {[%clk 0:02:11]} 24. Bf4 {[%clk 0:01:34]}  Kh8 {[%clk 0:02:05]} 25. Kh2 {[%clk 0:01:22]}  h6 {[%clk 0:02:03]} 26. f3 {[%clk 0:01:18]}  Bc6 {[%clk 0:01:50]} 27. Bd3 {[%clk 0:01:05]}  Qf6 {[%clk 0:01:41]} 28. Bg3 {[%clk 0:00:51]}  f4 {[%clk 0:01:38]} 29. Bf2 {[%clk 0:00:50]}  Ng5 {[%clk 0:01:26]} 30. Rxe8+ {[%clk 0:00:47]}  Bxe8 {[%clk 0:01:26]} 31. Qe2 {[%clk 0:00:42]}  Bf7 {[%clk 0:01:21]} 32. h4 {[%clk 0:00:27]}  Ne6 {[%clk 0:01:19]} 33. Qe4 {[%clk 0:00:27]}  Nf8 {[%clk 0:01:16]} 34. Qxb7 {[%clk 0:00:24]}  g5 {[%clk 0:00:51]} 35. hxg5 {[%clk 0:00:22]}  hxg5 {[%clk 0:00:50]} 36. Qxc7 {[%clk 0:00:22]}  Bxa2 {[%clk 0:00:37]} 37. c4 {[%clk 0:00:22]}  g4 {[%clk 0:00:34]} 38. fxg4 {[%clk 0:00:19]}  f3 {[%clk 0:00:33]} 39. g3 {[%clk 0:00:16]}  Qh6+ {[%clk 0:00:31]} 40. Kg1 {[%clk 0:00:16]}  Qc1+ {[%clk 0:00:31]} 41. Bf1 {[%clk 0:00:17]}  Qxb2 {[%clk 0:00:24]} 42. d5 {[%clk 0:00:15]}  Qe5 {[%clk 0:00:20]} 43. Qf7 {[%clk 0:00:14]}  Nh7 {[%clk 0:00:15]} 44. Qxa7 {[%clk 0:00:13]}  Bb1 {[%clk 0:00:14]} 45. Bd4 {[%clk 0:00:14]} 1-0


[Site "https://www.chess.com"]

[Event "Titled Tuesday Blitz April 25 Early 2023"]
[White "Rodriguez Santiago, Jaime"]
[Black "Ezat, Mohamed"]
[WhiteFideId "3100898"]
[BlackFideId "10600906"]
[WhiteElo "2025"]
[BlackElo "2386"]
[Result "0-1"]
[Round "01"]
[TimeControl "180+2"]
[Date "2023.04.25"]
[WhiteClock "0:00:19"]
[BlackClock "0:01:11"]

1. c4 {[%clk 0:02:59]}  Nf6 {[%clk 0:02:59]} 2. Nc3 {[%clk 0:02:59]}  g6 {[%clk 0:02:59]} 3. g3 {[%clk 0:03:00]}  Bg7 {[%clk 0:02:58]} 4. Bg2 {[%clk 0:03:00]}  O-O {[%clk 0:02:56]} 5. e4 {[%clk 0:03:00]}  d6 {[%clk 0:02:55]} 6. Nge2 {[%clk 0:03:00]}  c5 {[%clk 0:02:55]} 7. O-O {[%clk 0:02:59]}  Nc6 {[%clk 0:02:55]} 8. d3 {[%clk 0:02:59]}  a6 {[%clk 0:02:55]} 9. a4 {[%clk 0:02:58]}  Ne8 {[%clk 0:02:52]} 10. Be3 {[%clk 0:02:54]}  Nc7 {[%clk 0:02:51]} 11. d4 {[%clk 0:02:54]}  cxd4 {[%clk 0:02:44]} 12. Nxd4 {[%clk 0:02:54]}  Ne6 {[%clk 0:02:43]} 13. Nde2 {[%clk 0:02:54]}  Rb8 {[%clk 0:02:41]} 14. Rb1 {[%clk 0:02:43]}  Bd7 {[%clk 0:02:36]} 15. f4 {[%clk 0:02:29]}  Na5 {[%clk 0:02:28]} 16. b3 {[%clk 0:02:22]}  b5 {[%clk 0:02:26]} 17. cxb5 {[%clk 0:02:12]}  axb5 {[%clk 0:02:26]} 18. axb5 {[%clk 0:02:11]}  Bxb5 {[%clk 0:02:19]} 19. Nxb5 {[%clk 0:02:00]}  Rxb5 {[%clk 0:02:18]} 20. f5 {[%clk 0:01:36]}  Nc5 {[%clk 0:02:18]} 21. b4 {[%clk 0:01:34]}  Nc4 {[%clk 0:02:16]} 22. Bd4 {[%clk 0:01:20]}  Nd7 {[%clk 0:02:03]} 23. Bxg7 {[%clk 0:01:19]}  Kxg7 {[%clk 0:02:02]} 24. Nd4 {[%clk 0:01:13]}  Qb6 {[%clk 0:01:54]} 25. Kh1 {[%clk 0:01:11]}  Rxb4 {[%clk 0:01:50]} 26. Rxb4 {[%clk 0:01:08]}  Qxb4 {[%clk 0:01:50]} 27. Nc6 {[%clk 0:01:03]}  Qc3 {[%clk 0:01:42]} 28. Rf3 {[%clk 0:00:47]}  Qd2 {[%clk 0:01:32]} 29. Qa1+ {[%clk 0:00:46]}  Nde5 {[%clk 0:01:32]} 30. Nxe7 {[%clk 0:00:42]}  Ne3 {[%clk 0:01:23]} 31. f6+ {[%clk 0:00:36]}  Kh8 {[%clk 0:01:17]} 32. Qg1 {[%clk 0:00:31]}  Nxf3 {[%clk 0:01:13]} 33. Bxf3 {[%clk 0:00:31]}  Rb8 {[%clk 0:01:13]} 34. Nxg6+ {[%clk 0:00:19]}  hxg6 {[%clk 0:01:11]} 0-1


[Site "https://www.chess.com"]

[Event "Titled Tuesday Blitz April 25 Early 2023"]
[White "Hamitevici, Vladimir"]
[Black "Bogaudinov, Rushan"]
[WhiteFideId "13902393"]
[BlackFideId "4129288"]
[WhiteElo "2401"]
[BlackElo "1967"]
[Result "1-0"]
[Round "01"]
[TimeControl "180+2"]
[Date "2023.04.25"]
[WhiteClock "0:00:30"]
[BlackClock "0:00:04"]

1. d4 {[%clk 0:02:59]}  d5 {[%clk 0:02:54]} 2. Bf4 {[%clk 0:02:57]}  Nf6 {[%clk 0:02:52]} 3. e3 {[%clk 0:02:56]}  e6 {[%clk 0:02:48]} 4. Nf3 {[%clk 0:02:56]}  Be7 {[%clk 0:02:48]} 5. Nbd2 {[%clk 0:02:52]}  O-O {[%clk 0:02:47]} 6. h3 {[%clk 0:02:48]}  b6 {[%clk 0:02:43]} 7. a4 {[%clk 0:02:45]}  a6 {[%clk 0:02:40]} 8. Bd3 {[%clk 0:02:44]}  Bb7 {[%clk 0:02:40]} 9. O-O {[%clk 0:02:42]}  c5 {[%clk 0:02:36]} 10. c3 {[%clk 0:02:40]}  Nbd7 {[%clk 0:02:36]} 11. Qe2 {[%clk 0:02:35]}  c4 {[%clk 0:02:36]} 12. Bc2 {[%clk 0:02:34]}  b5 {[%clk 0:02:37]} 13. e4 {[%clk 0:02:32]}  dxe4 {[%clk 0:02:34]} 14. Nxe4 {[%clk 0:02:32]}  Nxe4 {[%clk 0:02:22]} 15. Bxe4 {[%clk 0:02:32]}  Bxe4 {[%clk 0:02:22]} 16. Qxe4 {[%clk 0:02:33]}  Nf6 {[%clk 0:02:23]} 17. Qc6 {[%clk 0:02:07]}  Nd5 {[%clk 0:02:07]} 18. Bg3 {[%clk 0:02:05]}  Qe8 {[%clk 0:02:06]} 19. Ne5 {[%clk 0:01:52]}  Qxc6 {[%clk 0:01:54]} 20. Nxc6 {[%clk 0:01:51]}  Rfc8 {[%clk 0:01:50]} 21. axb5 {[%clk 0:01:42]}  axb5 {[%clk 0:01:48]} 22. Na7 {[%clk 0:01:41]}  Rd8 {[%clk 0:01:33]} 23. Nxb5 {[%clk 0:01:40]}  h5 {[%clk 0:01:31]} 24. Rfe1 {[%clk 0:01:26]}  h4 {[%clk 0:01:31]} 25. Bh2 {[%clk 0:01:26]}  g5 {[%clk 0:01:29]} 26. Kf1 {[%clk 0:01:24]}  Kg7 {[%clk 0:01:29]} 27. Ke2 {[%clk 0:01:20]}  Kg6 {[%clk 0:01:21]} 28. Kd2 {[%clk 0:01:18]}  Rxa1 {[%clk 0:01:03]} 29. Rxa1 {[%clk 0:01:18]}  Rd7 {[%clk 0:01:04]} 30. Ra7 {[%clk 0:01:15]}  Rxa7 {[%clk 0:00:58]} 31. Nxa7 {[%clk 0:01:16]}  f5 {[%clk 0:00:55]} 32. Nc6 {[%clk 0:01:14]}  f4 {[%clk 0:00:50]} 33. Ne5+ {[%clk 0:01:12]}  Kf5 {[%clk 0:00:49]} 34. Nxc4 {[%clk 0:01:12]}  g4 {[%clk 0:00:45]} 35. hxg4+ {[%clk 0:01:11]}  Kxg4 {[%clk 0:00:46]} 36. f3+ {[%clk 0:01:10]}  Kf5 {[%clk 0:00:44]} 37. Kd3 {[%clk 0:01:08]}  Nc7 {[%clk 0:00:32]} 38. b4 {[%clk 0:01:03]}  Nd5 {[%clk 0:00:32]} 39. b5 {[%clk 0:01:01]}  Bd8 {[%clk 0:00:32]} 40. Nd6+ {[%clk 0:00:56]}  Kf6 {[%clk 0:00:29]} 41. c4 {[%clk 0:00:55]}  Nb4+ {[%clk 0:00:20]} 42. Ke4 {[%clk 0:00:54]}  e5 {[%clk 0:00:16]} 43. dxe5+ {[%clk 0:00:46]}  Ke6 {[%clk 0:00:16]} 44. c5 {[%clk 0:00:43]}  Na2 {[%clk 0:00:15]} 45. b6 {[%clk 0:00:40]}  Nc3+ {[%clk 0:00:16]} 46. Kxf4 {[%clk 0:00:40]}  Na4 {[%clk 0:00:15]} 47. Ne4 {[%clk 0:00:33]}  Nxb6 {[%clk 0:00:14]} 48. cxb6 {[%clk 0:00:32]}  Bxb6 {[%clk 0:00:15]} 49. Kg4 {[%clk 0:00:32]}  Bd8 {[%clk 0:00:13]} 50. Ng5+ {[%clk 0:00:32]}  Kd5 {[%clk 0:00:10]} 51. Kxh4 {[%clk 0:00:32]}  Kc6 {[%clk 0:00:07]} 52. Kh5 {[%clk 0:00:31]}  Kd7 {[%clk 0:00:08]} 53. Kg6 {[%clk 0:00:31]}  Ke8 {[%clk 0:00:09]} 54. f4 {[%clk 0:00:31]}  Be7 {[%clk 0:00:09]} 55. f5 {[%clk 0:00:31]}  Ba3 {[%clk 0:00:08]} 56. f6 {[%clk 0:00:31]}  Bb2 {[%clk 0:00:08]} 57. f7+ {[%clk 0:00:30]}  Ke7 {[%clk 0:00:04]} 58. Kg7 {[%clk 0:00:30]} 1-0


[Site "https://www.chess.com"]

[Event "Titled Tuesday Blitz April 25 Early 2023"]
[White "Blokhin, Sofia"]
[Black "Berezin, Viktor"]
[WhiteFideId "4508190"]
[BlackFideId "14107872"]
[WhiteElo "1994"]
[BlackElo "2310"]
[Result "0-1"]
[Round "01"]
[TimeControl "180+2"]
[Date "2023.04.25"]
[WhiteClock "0:00:11"]
[BlackClock "0:01:33"]

1. d4 {[%clk 0:03:00]}  Nf6 {[%clk 0:02:58]} 2. c4 {[%clk 0:03:00]}  g6 {[%clk 0:02:58]} 3. Nc3 {[%clk 0:03:00]}  Bg7 {[%clk 0:02:59]} 4. e4 {[%clk 0:03:00]}  O-O {[%clk 0:02:58]} 5. Be3 {[%clk 0:02:59]}  d6 {[%clk 0:02:58]} 6. f3 {[%clk 0:02:59]}  b6 {[%clk 0:02:57]} 7. Qd2 {[%clk 0:02:59]}  c5 {[%clk 0:02:57]} 8. d5 {[%clk 0:02:58]}  e6 {[%clk 0:02:53]} 9. O-O-O {[%clk 0:02:58]}  exd5 {[%clk 0:02:52]} 10. cxd5 {[%clk 0:02:57]}  a6 {[%clk 0:02:52]} 11. g4 {[%clk 0:02:56]}  b5 {[%clk 0:02:52]} 12. h4 {[%clk 0:02:54]}  h5 {[%clk 0:02:49]} 13. gxh5 {[%clk 0:02:49]}  Nxh5 {[%clk 0:02:48]} 14. Nge2 {[%clk 0:02:46]}  Qa5 {[%clk 0:02:42]} 15. a3 {[%clk 0:02:04]}  b4 {[%clk 0:02:32]} 16. Nb1 {[%clk 0:01:38]}  Nd7 {[%clk 0:02:29]} 17. Nf4 {[%clk 0:01:31]}  Ndf6 {[%clk 0:02:13]} 18. Nxh5 {[%clk 0:01:16]}  Nxh5 {[%clk 0:02:14]} 19. Bc4 {[%clk 0:01:11]}  Rb8 {[%clk 0:02:11]} 20. f4 {[%clk 0:00:43]}  Bg4 {[%clk 0:02:01]} 21. Rdg1 {[%clk 0:00:40]}  Bf3 {[%clk 0:02:01]} 22. Rh2 {[%clk 0:00:26]}  Bxe4 {[%clk 0:02:01]} 23. Be2 {[%clk 0:00:21]}  Bxb1 {[%clk 0:01:39]} 24. Kxb1 {[%clk 0:00:20]}  Qd8 {[%clk 0:01:35]} 25. Bxh5 {[%clk 0:00:19]}  bxa3 {[%clk 0:01:36]} 26. Qe2 {[%clk 0:00:15]}  Rxb2+ {[%clk 0:01:34]} 27. Qxb2 {[%clk 0:00:14]}  axb2 {[%clk 0:01:35]} 28. Bd1 {[%clk 0:00:12]}  Qa5 {[%clk 0:01:33]} 29. h5 {[%clk 0:00:10]}  Qa1+ {[%clk 0:01:33]} 30. Kc2 {[%clk 0:00:11]}  b1=Q+ {[%clk 0:01:33]} 0-1


[Site "https://www.chess.com"]

[Event "Titled Tuesday Blitz April 25 Early 2023"]
[White "Bashirli, Saadat"]
[Black "Taboas Rodriguez, Daniel"]
[WhiteFideId "13429990"]
[BlackFideId "2208466"]
[WhiteElo "1408"]
[BlackElo "2365"]
[Result "0-1"]
[Round "01"]
[TimeControl "180+2"]
[Date "2023.04.25"]
[WhiteClock "0:00:01"]
[BlackClock "0:00:12"]

1. e4 {[%clk 0:02:59]}  e5 {[%clk 0:02:59]} 2. Nf3 {[%clk 0:02:59]}  Nc6 {[%clk 0:02:59]} 3. Bc4 {[%clk 0:02:57]}  Nf6 {[%clk 0:02:59]} 4. d3 {[%clk 0:02:57]}  Bc5 {[%clk 0:02:59]} 5. c3 {[%clk 0:02:58]}  d6 {[%clk 0:02:59]} 6. Nbd2 {[%clk 0:02:57]}  O-O {[%clk 0:02:58]} 7. O-O {[%clk 0:02:56]}  a6 {[%clk 0:02:57]} 8. Bb3 {[%clk 0:02:55]}  Ba7 {[%clk 0:02:56]} 9. Re1 {[%clk 0:02:56]}  Kh8 {[%clk 0:02:49]} 10. Nf1 {[%clk 0:02:55]}  Ng4 {[%clk 0:02:49]} 11. d4 {[%clk 0:02:54]}  f5 {[%clk 0:02:45]} 12. exf5 {[%clk 0:02:47]}  Bxf5 {[%clk 0:02:45]} 13. h3 {[%clk 0:02:44]}  Nf6 {[%clk 0:02:36]} 14. dxe5 {[%clk 0:02:39]}  dxe5 {[%clk 0:02:36]} 15. Qxd8 {[%clk 0:02:37]}  Raxd8 {[%clk 0:02:37]} 16. Bg5 {[%clk 0:02:36]}  Ne4 {[%clk 0:02:20]} 17. Rxe4 {[%clk 0:02:23]}  Bxe4 {[%clk 0:02:20]} 18. Bxd8 {[%clk 0:02:24]}  Rxd8 {[%clk 0:02:20]} 19. Ng5 {[%clk 0:02:20]}  Bd5 {[%clk 0:02:13]} 20. Bxd5 {[%clk 0:01:53]}  Rxd5 {[%clk 0:02:12]} 21. Re1 {[%clk 0:01:51]}  Kg8 {[%clk 0:02:10]} 22. Re2 {[%clk 0:01:43]}  Rd1 {[%clk 0:02:05]} 23. Ne4 {[%clk 0:01:36]}  Kf7 {[%clk 0:02:00]} 24. Ng3 {[%clk 0:01:30]}  Bc5 {[%clk 0:01:49]} 25. Kh2 {[%clk 0:01:21]}  Bd6 {[%clk 0:01:36]} 26. Ne3 {[%clk 0:01:17]}  Ra1 {[%clk 0:01:36]} 27. a3 {[%clk 0:01:05]}  Rb1 {[%clk 0:01:35]} 28. Nc4 {[%clk 0:00:56]}  b5 {[%clk 0:01:24]} 29. Nxd6+ {[%clk 0:00:50]}  cxd6 {[%clk 0:01:25]} 30. Rd2 {[%clk 0:00:50]}  d5 {[%clk 0:00:56]} 31. Rxd5 {[%clk 0:00:39]}  Rxb2 {[%clk 0:00:56]} 32. Rd6 {[%clk 0:00:39]}  Na5 {[%clk 0:00:50]} 33. Rxa6 {[%clk 0:00:38]}  Nc4 {[%clk 0:00:50]} 34. Ra7+ {[%clk 0:00:36]}  Ke6 {[%clk 0:00:50]} 35. Rxg7 {[%clk 0:00:35]}  Rxf2 {[%clk 0:00:49]} 36. Rxh7 {[%clk 0:00:34]}  Ne3 {[%clk 0:00:47]} 37. Ne4 {[%clk 0:00:16]}  Rxg2+ {[%clk 0:00:48]} 38. Kh1 {[%clk 0:00:16]}  Ra2 {[%clk 0:00:42]} 39. h4 {[%clk 0:00:12]}  Kf5 {[%clk 0:00:40]} 40. Nd6+ {[%clk 0:00:11]}  Kg4 {[%clk 0:00:40]} 41. Nxb5 {[%clk 0:00:10]}  Kh3 {[%clk 0:00:40]} 42. Kg1 {[%clk 0:00:10]}  Ng4 {[%clk 0:00:40]} 43. Kf1 {[%clk 0:00:10]}  e4 {[%clk 0:00:40]} 44. Re7 {[%clk 0:00:09]}  e3 {[%clk 0:00:40]} 45. Ke1 {[%clk 0:00:08]}  Kxh4 {[%clk 0:00:33]} 46. Nd4 {[%clk 0:00:08]}  Kg3 {[%clk 0:00:33]} 47. Ne2+ {[%clk 0:00:06]}  Kf3 {[%clk 0:00:31]} 48. Nc1 {[%clk 0:00:05]}  Rxa3 {[%clk 0:00:27]} 49. Kd1 {[%clk 0:00:05]}  Nf2+ {[%clk 0:00:25]} 50. Kc2 {[%clk 0:00:05]}  Ne4 {[%clk 0:00:25]} 51. Rf7+ {[%clk 0:00:05]}  Kg4 {[%clk 0:00:23]} 52. Rg7+ {[%clk 0:00:05]}  Kf5 {[%clk 0:00:24]} 53. Rg2 {[%clk 0:00:02]}  Nf2 {[%clk 0:00:20]} 54. Rg3 {[%clk 0:00:02]}  Kf4 {[%clk 0:00:20]} 55. Rg6 {[%clk 0:00:02]}  Ne4 {[%clk 0:00:18]} 56. Rg2 {[%clk 0:00:01]}  Rxc3+ {[%clk 0:00:17]} 57. Kd1 {[%clk 0:00:01]}  Nf2+ {[%clk 0:00:16]} 58. Ke2 {[%clk 0:00:01]}  Rxc1 {[%clk 0:00:15]} 59. Rg6 {[%clk 0:00:01]}  Rc2+ {[%clk 0:00:15]} 60. Ke1 {[%clk 0:00:01]}  Ne4 {[%clk 0:00:15]} 61. Kd1 {[%clk 0:00:02]}  Rd2+ {[%clk 0:00:14]} 62. Ke1 {[%clk 0:00:02]}  Kf3 {[%clk 0:00:13]} 63. Rg1 {[%clk 0:00:01]}  Re2+ {[%clk 0:00:12]} 64. Kd1 {[%clk 0:00:01]}  Nc3+ {[%clk 0:00:12]} 65. Kc1 {[%clk 0:00:02]}  Rg2 {[%clk 0:00:12]} 66. Rf1+ {[%clk 0:00:01]}  Rf2 {[%clk 0:00:12]} 67. Rg1 {[%clk 0:00:01]}  e2 {[%clk 0:00:12]} 68. Kd2 {[%clk 0:00:01]}  Rf1 {[%clk 0:00:12]} 0-1


[Site "https://www.chess.com"]

[Event "Titled Tuesday Blitz April 25 Early 2023"]
[White "Jeet, Jain"]
[Black "Albuquerque Junior,Wellington S."]
[WhiteFideId "5073022"]
[BlackFideId "2151480"]
[WhiteElo "2067"]
[BlackElo "2109"]
[Result "1-0"]
[Round "01"]
[TimeControl "180+2"]
[Date "2023.04.25"]
[WhiteClock "0:00:55"]
[BlackClock "0:00:04"]

1. c4 {[%clk 0:02:51]}  Nf6 {[%clk 0:02:59]} 2. Nc3 {[%clk 0:02:51]}  c5 {[%clk 0:03:00]} 3. Nf3 {[%clk 0:02:51]}  d6 {[%clk 0:02:56]} 4. g3 {[%clk 0:02:47]}  g6 {[%clk 0:02:56]} 5. Bg2 {[%clk 0:02:47]}  Bg7 {[%clk 0:02:56]} 6. d3 {[%clk 0:02:46]}  O-O {[%clk 0:02:56]} 7. Qd2 {[%clk 0:02:46]}  Nc6 {[%clk 0:02:56]} 8. b3 {[%clk 0:02:46]}  Bd7 {[%clk 0:02:55]} 9. Bb2 {[%clk 0:02:45]}  Rb8 {[%clk 0:02:56]} 10. O-O {[%clk 0:02:45]}  a6 {[%clk 0:02:56]} 11. a4 {[%clk 0:02:44]}  Ne8 {[%clk 0:02:43]} 12. e3 {[%clk 0:02:41]}  Nc7 {[%clk 0:02:41]} 13. d4 {[%clk 0:02:40]}  cxd4 {[%clk 0:02:39]} 14. exd4 {[%clk 0:02:40]}  b5 {[%clk 0:02:32]} 15. axb5 {[%clk 0:02:39]}  axb5 {[%clk 0:02:33]} 16. c5 {[%clk 0:02:27]}  dxc5 {[%clk 0:02:13]} 17. dxc5 {[%clk 0:02:27]}  Be6 {[%clk 0:02:03]} 18. Qc2 {[%clk 0:02:03]}  Nb4 {[%clk 0:01:45]} 19. Qe4 {[%clk 0:02:01]}  Nbd5 {[%clk 0:01:46]} 20. Rac1 {[%clk 0:01:57]}  Nxc3 {[%clk 0:01:11]} 21. Bxc3 {[%clk 0:01:58]}  Bxb3 {[%clk 0:00:58]} 22. Bxg7 {[%clk 0:01:48]}  Kxg7 {[%clk 0:00:59]} 23. Nd4 {[%clk 0:01:48]}  Bd5 {[%clk 0:00:55]} 24. Qe5+ {[%clk 0:01:43]}  f6 {[%clk 0:00:55]} 25. Qe3 {[%clk 0:01:42]}  Bxg2 {[%clk 0:00:55]} 26. Kxg2 {[%clk 0:01:42]}  Qd5+ {[%clk 0:00:50]} 27. Kg1 {[%clk 0:01:41]}  e5 {[%clk 0:00:45]} 28. Nb3 {[%clk 0:01:37]}  Rfd8 {[%clk 0:00:41]} 29. c6 {[%clk 0:01:32]}  Qd3 {[%clk 0:00:25]} 30. Qa7 {[%clk 0:01:30]}  Qxb3 {[%clk 0:00:19]} 31. Qxc7+ {[%clk 0:01:29]}  Qf7 {[%clk 0:00:20]} 32. Qa5 {[%clk 0:01:26]}  Rdc8 {[%clk 0:00:16]} 33. Rfd1 {[%clk 0:01:23]}  Rc7 {[%clk 0:00:17]} 34. Rd2 {[%clk 0:01:12]}  Rbc8 {[%clk 0:00:10]} 35. Qxb5 {[%clk 0:01:08]}  h5 {[%clk 0:00:09]} 36. Rcd1 {[%clk 0:01:05]}  Kh6 {[%clk 0:00:08]} 37. Rd7 {[%clk 0:01:04]}  Qe6 {[%clk 0:00:08]} 38. Rxc7 {[%clk 0:01:02]}  Rxc7 {[%clk 0:00:09]} 39. Rc1 {[%clk 0:01:00]}  Qd6 {[%clk 0:00:07]} 40. h4 {[%clk 0:00:58]}  f5 {[%clk 0:00:04]} 41. Qb8 {[%clk 0:00:56]}  Kg7 {[%clk 0:00:04]} 42. Qa8 {[%clk 0:00:55]} 1-0


[Site "https://www.chess.com"]